bitfinex-derivatives/quotes_BNBF0:USTF0_20250329
["timestamp","ask_amount","ask_price","bid_price","bid_amount"]
[1743239792950,0.98103169,606.87,606.86,1.5895653]
[1743239794261,2.35429435,606.87,606.86,1.5895653]
[1743239794855,3.44198511,606.87,606.86,1.5895653]
[1743239795666,5.01026734,606.87,606.86,1.5895653]
[1743239795867,9.60530102,606.87,606.86,1.5895653]
[1743239796162,9.44056266,606.87,606.86,1.5895653]
[1743239796764,10.09714424,606.87,606.86,1.5895653]
[1743239796964,10.09714424,606.87,606.86,0.3295653]
[1743239797168,10.75617256,606.87,606.86,0.3295653]
[1743239797862,10.75617256,606.87,606.44,1.312]
[1743239798067,7.26991216,606.86,606.45,0.29885437]
[1743239798259,7.26991216,606.85,606.46,0.29885596]
[1743239798465,7.26991216,606.84,606.45,0.29885596]
[1743239798765,7.26661746,606.83,606.47,0.29885596]
[1743239798965,7.26661746,606.82,606.48,0.29885596]
[1743239799159,7.26661746,606.82,606.44,1.312]
[1743239799160,6.60752812,606.81,606.45,0.29885596]
[1743239799365,3.4862604,606.82,606.45,0.29885596]
[1743239799366,6.60752812,606.8,606.45,0.29885596]
[1743239799660,6.60752812,606.79,606.45,0.29885596]
[1743239799872,6.60752812,606.78,606.45,0.29885596]
[1743239800060,6.60752812,606.77,606.45,0.29885596]
[1743239800262,7.26673879,606.76,606.45,0.29885596]
[1743239800463,6.60752812,606.75,606.45,0.29885596]
[1743239800662,6.60752812,606.74,606.45,0.29885596]
[1743239800967,6.60752812,606.73,606.45,0.29885596]
[1743239801162,6.11325308,606.72,606.45,0.29885596]
[1743239801364,6.60768309,606.71,606.45,0.29885596]
[1743239801562,6.60769305,606.7,606.45,0.29885596]
[1743239801767,6.60769305,606.69,606.44,1.312]
[1743239802068,6.60769305,606.68,606.44,1.312]
[1743239802269,6.60769305,606.67,606.44,1.312]
[1743239802467,6.60769305,606.66,606.44,1.312]
[1743239802666,6.60769305,606.65,606.44,1.312]
[1743239802866,3.92005975,606.64,606.44,1.312]
[1743239803067,2.35177752,606.63,606.44,1.312]
[1743239803265,2.35177752,606.62,606.44,1.312]
[1743239803468,2.35177752,606.61,606.44,1.312]
[1743239803767,2.35177752,606.6,606.44,1.312]
[1743239803970,2.34735333,606.59,606.44,1.312]
[1743239804164,0.98103169,606.58,606.44,1.312]
[1743239804367,0.98103169,606.57,606.44,1.312]
[1743239804568,0.98103169,606.56,606.44,1.312]
[1743239804770,0.98103169,606.55,606.44,1.312]
[1743239804971,0.98103169,606.54,606.44,1.312]
[1743239805170,0.9612861,606.53,606.44,1.312]
[1743239805367,0.97793425,606.86,606.44,1.312]
[1743239805565,7.20186155,606.85,606.44,1.312]
[1743239805767,7.20186155,606.84,606.44,1.312]
[1743239805964,7.20186155,606.83,606.44,1.312]
[1743239806166,7.20186155,606.82,606.44,1.312]
[1743239806365,7.20186155,606.81,606.44,1.312]
[1743239806566,7.20186155,606.8,606.44,1.312]
[1743239806770,7.20033633,606.79,606.44,1.312]
[1743239806967,7.20033633,606.78,606.44,1.312]
[1743239807167,7.20033633,606.77,606.44,1.312]
[1743239807367,6.04658179,606.76,606.44,1.312]
[1743239807570,6.04658179,606.75,606.44,1.312]
[1743239807771,3.86360204,606.74,606.44,1.312]
[1743239807967,3.86360204,606.73,606.44,1.312]
[1743239808272,3.86360204,606.72,606.44,1.312]
[1743239808572,3.86360204,606.71,606.44,1.312]
[1743239808772,3.86360204,606.7,606.44,1.312]
[1743239808972,3.86360204,606.69,606.45,0.32978811]
[1743239809172,2.32468813,606.68,606.45,0.32978811]
[1743239809364,2.32468813,606.67,606.45,0.32978811]
[1743239809567,2.32468813,606.66,606.45,0.32978811]
[1743239809771,2.32468813,606.65,606.45,0.32978811]
[1743239810070,0.96032579,606.64,606.45,0.32978811]
[1743239810265,0.96032579,606.63,606.45,0.32978811]
[1743239810469,0.96032579,606.62,606.46,0.29890816]
[1743239810671,0.96032579,606.61,606.46,0.29890816]
[1743239810871,0.96032579,606.6,606.46,0.29890816]
[1743239811072,2.32353021,606.59,606.47,0.32977723]
[1743239811271,3.85925554,606.58,606.48,0.29890816]
[1743239811571,0.97070822,606.78,606.49,0.32976636]
[1743239811572,3.85925554,606.57,606.49,0.32976636]
[1743239811774,3.85925554,606.56,606.5,0.29890816]
[1743239811973,3.85921884,606.55,606.51,0.32975548]
[1743239812270,0.96032579,606.54,606.52,0.29890816]
[1743239812471,1.07497096,606.57,606.52,0.29890816]
[1743239812472,0.95967685,606.53,606.52,0.29890816]
[1743239812671,0.95967685,606.53,606.45,0.29890816]
[1743239812866,0.95967685,606.52,606.45,0.29890816]
[1743239813071,0.95967685,606.51,606.45,0.29890816]
[1743239813373,0.95967685,606.5,606.45,0.29890816]
[1743239813672,1.64127306,606.79,606.45,0.29890816]
[1743239813872,6.53300023,606.78,606.45,0.29890816]
[1743239814074,6.53300023,606.77,606.45,0.29890816]
[1743239814272,6.53300023,606.76,606.45,0.29890816]
[1743239814465,6.03866174,606.75,606.45,0.29890816]
[1743239814670,6.03866174,606.74,606.45,0.29890816]
[1743239814967,6.03866174,606.73,606.45,0.29890816]
[1743239815168,3.8581492,606.72,606.45,0.29890816]
[1743239815373,3.8581492,606.71,606.45,0.29890816]
[1743239815571,6.65272753,606.7,606.45,0.29890816]
[1743239815766,3.8581492,606.69,606.45,0.29890816]
[1743239815971,3.8581492,606.68,606.45,0.29890816]
[1743239816173,3.8581492,606.67,606.45,0.29890816]
[1743239816367,3.8581492,606.66,606.45,0.29890816]
[1743239816570,2.32256221,606.65,606.45,0.29890816]
[1743239816768,2.32256221,606.64,606.45,0.29890816]
[1743239816968,0.95974187,606.63,606.45,0.29890816]
[1743239817168,0.95974187,606.62,606.46,0.29886673]
[1743239817473,0.95974187,606.61,606.47,0.29886673]
[1743239817674,0.95974187,606.6,606.45,0.29886673]
[1743239817873,0.95974187,606.59,606.46,0.29886673]
[1743239818076,0.95974187,606.58,606.45,0.29886673]
[1743239818374,0.97005454,606.91,606.46,0.29886673]
[1743239818570,7.19038538,606.9,606.45,0.29886673]
[1743239818767,7.19038538,606.89,606.44,1.312]
[1743239818968,7.19038538,606.88,606.45,0.29886698]
[1743239819175,7.19038538,606.87,606.45,0.29886698]
[1743239819369,7.19038538,606.86,606.45,0.29886698]
[1743239819575,7.19038538,606.85,606.45,0.29886698]
[1743239819775,7.19038538,606.84,606.45,0.29886698]
[1743239819970,7.19038538,606.83,606.45,0.29886698]
[1743239820176,7.19038538,606.82,606.45,0.29886698]
[1743239820475,7.19038538,606.81,606.45,0.29886698]
[1743239820675,6.52988543,606.8,606.45,0.29886698]
[1743239820875,6.52988543,606.79,606.45,0.29886698]
[1743239821075,6.52998141,606.78,606.45,0.29886698]
[1743239821275,6.52998141,606.77,606.45,0.29886698]
[1743239821476,6.52998141,606.76,606.45,0.29886698]
[1743239821679,6.03564898,606.75,606.45,0.29886698]
[1743239821975,6.03564898,606.74,606.45,0.29886698]
[1743239822171,6.03564898,606.73,606.45,0.29886698]
[1743239822375,3.85622381,606.72,606.45,0.29886698]
[1743239822576,3.85622381,606.71,606.45,0.29886698]
[1743239822777,3.85622381,606.7,606.45,0.29886698]
[1743239822971,3.85622381,606.69,606.45,0.29886698]
[1743239823175,3.85622381,606.68,606.45,0.29886698]
[1743239823370,3.85622381,606.67,606.45,0.29886698]
[1743239823576,2.32140345,606.66,606.43,1.448]
[1743239823777,2.32140345,606.65,606.44,0.29886698]
[1743239823975,2.32140345,606.64,606.44,0.29886698]
[1743239824179,0.95926272,606.63,606.44,0.29886698]
[1743239824378,0.95926272,606.62,606.44,0.29886698]
[1743239824577,0.95926272,606.61,606.44,0.29886698]
[1743239824781,0.95926272,606.6,606.44,0.29886698]
[1743239824975,0.95926272,606.59,606.44,0.29886698]
[1743239825176,0.96960146,606.94,606.44,0.29886698]
[1743239825373,7.19220539,606.93,606.44,0.29886698]
[1743239825576,7.19220539,606.92,606.44,0.29886698]
[1743239825877,7.19220539,606.91,606.44,0.29886698]
[1743239826079,7.19220539,606.9,606.44,0.29886698]
[1743239826276,7.19280764,606.89,606.44,0.29886698]
[1743239826477,6.53369463,606.88,606.44,0.29886698]
[1743239826673,6.53369463,606.87,606.44,0.29886698]
[1743239826878,6.53369463,606.86,606.45,1.655]
[1743239827074,6.53369463,606.85,606.46,0.29886698]
[1743239827378,6.53369463,606.84,606.46,0.29886698]
[1743239827581,6.03935926,606.83,606.46,0.29886698]
[1743239827778,6.03935926,606.82,606.46,0.29886698]
[1743239827979,6.03935926,606.81,606.46,0.29886698]
[1743239828277,3.85844135,606.8,606.46,0.29886698]
[1743239828474,3.85844135,606.79,606.46,0.29886698]
[1743239828677,3.85844135,606.78,606.46,0.29886698]
[1743239828879,3.85844135,606.77,606.47,0.2988671]
[1743239829179,2.32283048,606.76,606.48,0.2988671]
[1743239829379,2.32283048,606.75,606.49,0.2988671]
[1743239829680,3.39776824,606.74,606.5,0.2988671]
[1743239829880,2.32283048,606.73,606.46,0.2988671]
[1743239830176,0.95975679,606.72,606.47,0.2988671]
[1743239830374,0.95975679,606.71,606.48,0.2988671]
[1743239830577,0.95975679,606.7,606.46,0.2988671]
[1743239830777,0.95975679,606.69,606.47,0.2988671]
[1743239830974,0.95975679,606.68,606.48,0.2988671]
[1743239831175,1.07493776,606.72,606.49,0.2988671]
[1743239831380,0.96018761,606.71,606.5,0.2988671]
[1743239831681,0.96018761,606.7,606.51,0.2988671]
[1743239831873,0.96018761,606.7,606.46,0.2988671]
[1743239832077,0.96018761,606.7,606.47,0.2988671]
[1743239832274,0.96018761,606.7,606.46,0.2988671]
[1743239832476,0.96018761,606.7,606.5,1.22507096]
[1743239832681,0.96018761,606.7,606.51,0.2988671]
[1743239832881,0.96018761,606.69,606.51,0.2988671]
[1743239833183,0.96960146,607.03,606.51,0.2988671]
[1743239833380,1.07578333,606.68,606.51,0.2988671]
[1743239833980,2.03641593,606.67,606.51,0.2988671]
[1743239834183,0.9606326,606.66,606.51,0.2988671]
[1743239834380,0.9606326,606.65,606.51,0.2988671]
[1743239834579,0.9606326,606.64,606.51,0.2988671]
[1743239834779,0.9606326,606.63,606.51,0.2988671]
[1743239834977,0.97098664,606.97,606.51,0.2988671]
[1743239835183,7.19915097,606.96,606.51,0.2988671]
[1743239835481,7.19915097,606.95,606.5,1.22507096]
[1743239835684,7.19915097,606.94,606.51,0.29886649]
[1743239835881,7.19915097,606.93,606.54,1.22507096]
[1743239836081,7.19915097,606.92,606.55,0.29886649]
[1743239836282,7.19915097,606.91,606.55,0.29886649]
[1743239836482,7.19915097,606.9,606.54,1.22507096]
[1743239836683,7.19915097,606.89,606.54,1.22507096]
[1743239836883,7.19915097,606.88,606.54,1.22507096]
[1743239837083,7.19915097,606.87,606.54,1.22507096]
[1743239837383,7.19915097,606.86,606.54,1.22507096]
[1743239837579,7.19915097,606.85,606.54,1.22507096]
[1743239837786,7.19915097,606.84,606.45,1.655]
[1743239838082,7.19915097,606.83,606.46,0.29889837]
[1743239838287,7.19915097,606.82,606.46,0.29889837]
[1743239838487,7.19915097,606.81,606.46,0.29889837]
[1743239838782,6.5400442,606.8,606.46,0.29889837]
[1743239838987,6.5400442,606.79,606.46,0.29889837]
[1743239839287,6.5400442,606.78,606.47,0.29888845]
[1743239839482,6.04571412,606.77,606.48,0.29888845]
[1743239839686,3.45753167,606.79,606.45,1.655]
[1743239839687,3.54747219,606.76,606.49,0.29888845]
[1743239839985,8.84799025,606.75,606.5,0.29888845]
[1743239840186,6.04957059,606.74,606.46,0.29888845]
[1743239840386,3.86651078,606.73,606.47,0.29888845]
[1743239840587,3.86651078,606.72,606.46,0.29888845]
[1743239840789,3.86651078,606.71,606.47,0.29888845]
[1743239840987,2.32675792,606.7,606.48,0.29888845]
[1743239841288,2.32949309,606.69,606.49,0.29888845]
[1743239841486,0.96234554,606.68,606.46,0.29888845]
[1743239841684,1.07631525,606.69,606.47,0.29888845]
[1743239841882,0.9628141,606.68,606.61,1.22507096]
[1743239842084,0.9628141,606.67,606.62,0.29888845]
[1743239842283,0.9628141,606.66,606.62,0.29888845]
[1743239842484,0.9628141,606.65,606.63,0.29887455]
[1743239842686,1.07631525,606.68,606.62,0.29887455]
[1743239842990,1.07631525,606.68,606.61,1.22507096]
[1743239842991,0.9631794,606.67,606.63,0.29887455]
[1743239843191,0.9631794,606.66,606.64,0.29887455]
[1743239843385,2.33126882,606.65,606.62,0.29887455]
[1743239843592,2.33123846,606.64,606.63,0.29889319]
[1743239843890,3.87269762,606.64,606.46,0.29889319]
[1743239844088,3.87321381,606.63,606.45,2.88474157]
[1743239844285,2.33123846,606.62,606.46,0.2989009]
[1743239844590,2.33123846,606.61,606.46,0.2989009]
[1743239844792,2.33160765,606.6,606.46,0.2989009]
[1743239845090,2.33159332,606.59,606.46,0.2989009]
[1743239845292,2.33159332,606.58,606.46,0.2989009]
[1743239845491,3.87431913,606.57,606.46,0.2989009]
[1743239845685,2.50548035,606.56,606.46,0.2989009]
[1743239845887,2.33183585,606.55,606.46,0.2989009]
[1743239846092,2.33183585,606.54,606.46,0.2989009]
[1743239846290,2.33183585,606.53,606.46,0.2989009]
[1743239846491,2.33183585,606.52,606.46,0.2989009]
[1743239846687,0.9631794,606.51,606.46,0.2989009]
[1743239846887,0.9631794,606.5,606.46,0.2989009]
[1743239847087,0.9631794,606.49,606.46,0.2989009]
[1743239847291,0.9631794,606.48,606.46,0.2989009]
[1743239847489,1.07905277,606.49,606.46,0.2989009]
[1743239847693,0.9642686,606.48,606.45,1.22974157]
[1743239847893,0.9642686,606.47,606.45,1.22974157]
[1743239848189,0.9642686,606.46,606.45,1.22974157]
[1743239848387,0.9642686,606.46,606.29,1.606]
[1743239848691,0.9642686,606.45,606.29,1.606]
[1743239848895,0.9642686,606.44,606.29,1.606]
[1743239849196,2.6144717,606.84,606.29,1.606]
[1743239849396,7.22287745,606.83,606.29,1.606]
[1743239849593,7.22287745,606.82,606.29,1.606]
[1743239849796,7.22287745,606.81,606.29,1.606]
[1743239849998,7.22287745,606.8,606.29,3.397]
[1743239850192,7.22287745,606.79,606.29,3.397]
[1743239850394,7.22287745,606.78,606.29,3.397]
[1743239850593,10.69100156,606.77,606.29,3.397]
[1743239850794,7.22287745,606.76,606.29,3.397]
[1743239850991,7.22287745,606.75,606.29,3.397]
[1743239851196,7.22287745,606.74,606.29,3.397]
[1743239851396,7.22287745,606.73,606.29,3.397]
[1743239851593,7.22287745,606.72,606.29,3.397]
[1743239851794,6.56528014,606.71,606.33,1.23326384]
[1743239851998,6.56528014,606.7,606.34,0.32984794]
[1743239852197,6.56528014,606.69,606.34,0.32984794]
[1743239852399,6.0708261,606.68,606.34,0.32984794]
[1743239852698,6.0708261,606.67,606.34,0.32984794]
[1743239852898,6.0708261,606.66,606.34,0.32984794]
[1743239853098,6.0708261,606.65,606.34,0.32984794]
[1743239853297,6.0708261,606.64,606.35,0.29890671]
[1743239853499,6.0708261,606.63,606.35,0.29890671]
[1743239853800,6.0708261,606.62,606.36,0.32983706]
[1743239854095,6.0708261,606.61,606.37,0.29890671]
[1743239854299,6.0708261,606.6,606.37,0.62873833]
[1743239854501,3.87828318,606.59,606.38,0.29890671]
[1743239854702,3.87828318,606.58,606.38,0.29890671]
[1743239855000,6.07351559,606.57,606.38,0.29890671]
[1743239855199,3.87828318,606.56,606.38,0.29890671]
[1743239855400,3.87828318,606.55,606.38,0.29890671]
[1743239855601,2.50794385,606.54,606.38,0.29890671]
[1743239855801,2.50794385,606.53,606.38,0.29890671]
[1743239856007,0.96459379,606.52,606.38,0.29890671]
[1743239856199,2.80885205,606.54,606.38,0.29890671]
[1743239856603,1.08032771,606.53,606.38,0.29890671]
[1743239857304,1.08032771,606.53,606.44,1.23326384]
[1743239857503,0.97319864,606.84,606.45,0.29890671]
[1743239857803,7.2359081,606.83,606.45,0.29890671]
[1743239858001,7.2359081,606.82,606.45,0.29890671]
[1743239858199,7.2359081,606.81,606.44,1.23326384]
[1743239858403,7.2359081,606.8,606.44,1.23326384]
[1743239858605,7.2359081,606.79,606.44,1.23326384]
[1743239858901,7.2359081,606.78,606.44,1.23326384]
[1743239859100,7.2359081,606.77,606.44,1.23326384]
[1743239859306,7.23589988,606.76,606.46,1.23326384]
[1743239859501,7.23589988,606.75,606.46,1.23326384]
[1743239859802,6.57670163,606.74,606.46,1.23326384]
[1743239859998,6.57670163,606.73,606.46,1.23326384]
[1743239860198,6.57670163,606.72,606.46,1.23326384]
[1743239860398,6.57670163,606.71,606.46,1.23326384]
[1743239860597,6.08229679,606.7,606.46,1.23326384]
[1743239860902,6.08229679,606.69,606.46,1.23326384]
[1743239861103,6.08229679,606.68,606.46,1.23326384]
[1743239861299,6.08229679,606.67,606.46,1.23326384]
[1743239861502,6.08229679,606.66,606.37,0.32983162]
[1743239861706,3.88603558,606.65,606.37,0.32983162]
[1743239861902,3.88614534,606.64,606.37,0.32983162]
[1743239862098,3.88614534,606.63,606.37,0.32983162]
[1743239862301,3.88614534,606.62,606.37,0.32983162]
[1743239862503,2.33938714,606.61,606.37,0.32983162]
[1743239862698,2.33938714,606.6,606.37,0.32983162]
[1743239862904,2.33938714,606.59,606.37,0.32983162]
[1743239863109,2.33938714,606.58,606.37,0.32983162]
[1743239863300,3.88638198,606.57,606.37,0.32983162]
[1743239863506,3.88638198,606.56,606.37,0.32983162]
[1743239863706,3.88638198,606.55,606.37,0.32983162]
[1743239864005,3.88672414,606.54,606.37,0.32983162]
[1743239864200,3.88672414,606.53,606.37,0.32983162]
[1743239864401,3.88672414,606.52,606.37,0.32983162]
[1743239864606,3.88672414,606.51,606.37,0.32983162]
[1743239864806,2.3397293,606.5,606.37,0.32983162]
[1743239865005,2.3397293,606.49,606.37,0.32983162]
[1743239865306,2.3397293,606.48,606.37,0.32983162]
[1743239865505,2.3397293,606.47,606.37,0.32983162]
[1743239865704,2.3397293,606.46,606.37,0.32983162]
[1743239865903,1.08264821,606.48,606.37,0.32983162]
[1743239865904,2.34087452,606.45,606.37,0.32983162]
[1743239866102,2.34087452,606.44,606.37,0.32983162]
[1743239866301,0.96731379,606.43,606.37,0.32983162]
[1743239866506,0.96731379,606.42,606.37,0.32983162]
[1743239866704,1.08264821,606.44,606.37,0.32983162]
[1743239866705,0.96731379,606.41,606.37,0.32983162]
[1743239866905,1.08264821,606.44,606.37,0.32983162]
[1743239867201,0.96744346,606.43,606.37,0.32983162]
[1743239867406,0.96744346,606.42,606.37,0.32983162]
[1743239867607,0.96744346,606.41,606.37,0.32983162]
[1743239867808,0.96744346,606.4,606.37,0.32983162]
[1743239868011,1.08356824,606.41,606.37,0.32983162]
[1743239868203,0.96748698,606.4,606.37,0.32983162]
[1743239868407,1.08356824,606.4,606.37,0.32983162]
[1743239869002,0.97778552,606.82,606.37,0.32983162]
[1743239869310,7.24018281,606.81,606.37,0.32983162]
[1743239869508,7.24018281,606.8,606.37,0.32983162]
[1743239869706,7.24018281,606.79,606.37,0.32983162]
[1743239869904,7.24018281,606.78,606.37,0.32983162]
[1743239870103,7.24018281,606.77,606.37,0.32983162]
[1743239870307,7.24018281,606.76,606.37,0.32983162]
[1743239870609,7.24018281,606.75,606.37,0.32983162]
[1743239870805,7.24018281,606.74,606.37,0.32983162]
[1743239871014,7.24018281,606.73,606.37,0.32983162]
[1743239871210,7.24018281,606.72,606.37,0.32983162]
[1743239871509,7.24018281,606.71,606.37,0.32983162]
[1743239871708,7.24018281,606.7,606.37,0.32983162]
[1743239871905,7.23935439,606.69,606.37,0.32983162]
[1743239872108,7.23935439,606.68,606.37,0.32983162]
[1743239872308,6.58010722,606.67,606.37,0.32983162]
[1743239872608,6.58010722,606.66,606.38,0.29888948]
[1743239872909,6.58010722,606.65,606.43,1.23326384]
[1743239873209,6.08569237,606.64,606.44,0.62868302]
[1743239873409,6.08569237,606.63,606.45,0.62867759]
[1743239873611,6.08569237,606.62,606.46,0.32978267]
[1743239873909,6.08519003,606.61,606.46,0.32978267]
[1743239874109,6.08508282,606.6,606.46,0.32978267]
[1743239874406,3.88773876,606.59,606.46,0.32978267]
[1743239874607,6.08515076,606.58,606.46,0.32978267]
[1743239874805,3.88773876,606.57,606.47,0.29889896]
[1743239875007,0.96705066,606.56,606.48,0.32977179]
[1743239875207,0.96705066,606.55,606.48,0.32977179]
[1743239875412,0.96705066,606.54,606.48,0.32977179]
[1743239875612,0.96705066,606.53,606.48,0.32977179]
[1743239875812,1.08341365,606.54,606.48,0.32977179]
[1743239876012,2.34192881,606.53,606.48,0.32977179]
[1743239876211,0.96782179,606.52,606.48,0.32977179]
[1743239876512,2.05123544,606.51,606.49,0.29888155]
[1743239876713,0.96782179,606.5,606.49,0.29888155]
[1743239876910,2.05123544,606.5,606.49,0.29888155]
[1743239877815,1.08341365,606.5,606.49,0.29888155]
[1743239878008,2.05118224,606.5,606.49,0.29888155]
[1743239878413,1.08341365,606.5,606.49,0.29888155]
[1743239879719,0.97821566,606.81,606.49,0.29888155]
[1743239879920,7.24442962,606.8,606.49,0.29888155]
[1743239880219,7.24442962,606.79,606.49,0.29888155]
[1743239880421,7.24442962,606.78,606.49,0.29888155]
[1743239880615,7.24442962,606.77,606.5,0.2988864]
[1743239880819,10.72239821,606.76,606.51,0.2988864]
[1743239881120,7.24442962,606.75,606.48,0.32977179]
[1743239881322,7.24442962,606.74,606.48,0.32977179]
[1743239881517,7.24442962,606.73,606.48,0.32977179]
[1743239881721,4.72750585,606.72,606.48,0.32977179]
[1743239881922,7.24442962,606.71,606.56,1.23350431]
[1743239882121,7.24442962,606.7,606.56,1.23350431]
[1743239882422,7.24442962,606.69,606.56,1.23350431]
[1743239882622,4.06835317,606.68,606.56,1.23350431]
[1743239882824,6.58527694,606.67,606.56,1.23350431]
[1743239883122,1.64127306,606.83,606.56,1.23350431]
[1743239883123,6.58527694,606.66,606.56,1.23350431]
[1743239883321,6.09091243,606.65,606.56,1.23350431]
[1743239883522,6.09091243,606.64,606.56,1.23350431]
[1743239883722,6.09091243,606.63,606.56,1.23350431]
[1743239884023,6.09091243,606.62,606.56,1.23350431]
[1743239884223,6.09210173,606.61,606.56,1.23350431]
[1743239884520,3.89153479,606.6,606.48,1.5632761]
[1743239884724,3.89153479,606.59,606.48,1.5632761]
[1743239885027,3.89153479,606.58,606.48,1.5632761]
[1743239885216,2.34265862,606.57,606.48,1.5632761]
[1743239885523,3.89397937,606.56,606.48,1.5632761]
[1743239885723,3.89397937,606.55,606.48,1.5632761]
[1743239885916,0.97912464,606.78,606.48,1.5632761]
[1743239885917,3.89397937,606.54,606.48,1.5632761]
[1743239886124,3.89397937,606.53,606.48,1.5632761]
[1743239886324,3.89397937,606.52,606.48,1.5632761]
[1743239886523,3.89411198,606.51,606.48,1.5632761]
[1743239886825,2.34412357,606.5,606.48,1.5632761]
[1743239887031,2.34412357,606.49,606.48,1.5632761]
[1743239887332,3.42828239,606.49,606.48,0.62866499]
[1743239887527,1.08415882,606.49,606.48,0.62866499]
[1743239887831,2.05297782,606.49,606.48,0.62866499]
[1743239888032,0.968819,606.49,606.48,0.62866499]
[1743239888437,0.97912464,606.84,606.48,0.32977179]
[1743239888632,7.24930722,606.83,606.49,0.29887045]
[1743239888829,6.75496658,606.82,606.49,0.62863681]
[1743239889034,5.21513218,606.81,606.5,0.29887045]
[1743239889234,4.73034818,606.8,606.5,0.29887045]
[1743239889431,7.24930722,606.79,606.5,0.29887045]
[1743239889628,9.17936672,606.78,606.5,0.29887045]
[1743239889831,6.28047682,606.77,606.5,0.29887045]
[1743239890032,7.24930722,606.76,606.5,0.29887045]
[1743239890230,7.24930722,606.75,606.5,0.29887045]
[1743239890435,7.24930722,606.74,606.5,0.29887045]
[1743239890632,7.24930722,606.73,606.5,0.29887045]
[1743239890836,7.24930722,606.72,606.5,0.29887045]
[1743239891030,4.73034818,606.71,606.5,0.29887045]
[1743239891233,10.72949536,606.7,606.5,0.29887045]
[1743239891434,7.24950608,606.69,606.5,0.29887045]
[1743239891732,7.24950608,606.68,606.5,0.29887045]
[1743239892038,7.24950608,606.67,606.5,0.29887045]
[1743239892230,7.24950608,606.66,606.51,0.2988819]
[1743239892432,6.59035343,606.65,606.52,0.2988819]
[1743239892630,6.59035343,606.64,606.5,0.2988819]
[1743239892835,6.59035343,606.63,606.62,1.23360396]
[1743239893136,4.38908958,606.63,606.62,1.23360396]
[1743239893438,7.2105459,606.63,606.62,1.53248003]
[1743239893632,6.42117899,608.97,606.62,1.53248003]
[1743239893836,0.32880676,608.26,606.62,1.23360396]
[1743239894036,0.3027928,608.25,606.63,2.06987957]
[1743239894336,0.3027928,608.24,606.63,1.771]
[1743239894530,0.3027928,608.23,606.63,1.771]
[1743239894731,0.28667694,608.24,606.63,1.771]
[1743239894732,2.50500488,608.2,606.63,1.771]
[1743239895029,0.32885001,608.18,606.63,1.771]
[1743239895232,4.53995312,608.17,606.63,1.771]
[1743239895437,0.97960368,606.78,606.63,1.771]
[1743239895629,5.78776355,606.77,606.63,1.771]
[1743239895833,7.25128896,606.76,606.63,1.771]
[1743239896036,5.70068573,606.75,606.63,1.771]
[1743239896334,5.70068573,606.74,606.63,1.771]
[1743239896534,7.25106854,606.73,606.63,1.771]
[1743239896731,3.48120459,606.74,606.63,1.771]
[1743239896732,7.25106854,606.72,606.63,1.771]
[1743239896931,5.2062028,606.71,606.63,1.771]
[1743239897132,5.2062028,606.7,606.63,1.771]
[1743239897329,5.2062028,606.69,606.63,1.771]
[1743239897533,5.70060057,606.68,606.63,1.771]
[1743239897737,5.70060057,606.67,606.63,1.771]
[1743239897936,5.70060057,606.66,606.63,1.771]
[1743239898141,5.04140272,606.65,606.63,1.771]
[1743239898334,6.59187069,606.64,606.63,1.771]
[1743239898733,10.07307528,606.64,606.63,1.771]
[1743239901143,10.73228548,606.64,606.63,1.771]
[1743239902140,10.73182226,606.64,606.63,1.771]
[1743239902843,10.0726516,606.64,606.63,1.771]
[1743239903142,9.57825383,606.64,606.63,1.771]
[1743239903540,8.91905598,606.64,606.63,1.771]
[1743239904740,8.91905598,606.64,606.63,2.06986002]
[1743239906045,9.41337784,606.64,606.63,0.29886002]
[1743239906246,9.41337784,606.64,606.63,0.298859]
[1743239906846,8.91905598,606.64,606.63,0.298859]
[1743239907147,8.91905598,606.64,606.5,0.298859]
[1743239907346,6.09704924,606.63,606.5,0.298859]
[1743239907645,8.91905598,606.62,606.5,0.298859]
[1743239907945,3.89548691,606.61,606.5,0.298859]
[1743239908149,3.89403076,606.6,606.5,0.298859]
[1743239908341,3.89403076,606.59,606.5,0.298859]
[1743239908539,1.73661953,606.6,606.5,0.298859]
[1743239908540,3.89403076,606.58,606.5,0.298859]
[1743239908742,2.34445888,606.57,606.5,0.298859]
[1743239908945,2.34445888,606.56,606.5,0.298859]
[1743239909142,2.34445888,606.55,606.5,0.298859]
[1743239909447,0.96848242,606.54,606.5,0.298859]
[1743239909647,0.96848242,606.53,606.5,0.298859]
[1743239909846,0.96848242,606.52,606.5,0.298859]
[1743239910147,1.08538721,606.55,606.51,0.32975548]
[1743239910347,0.96802139,606.54,606.52,0.298859]
[1743239910547,0.97845132,606.78,606.53,0.32974461]
[1743239910848,10.72185507,606.77,606.54,0.298859]
[1743239911147,7.2440883,606.76,606.54,0.298859]
[1743239911448,7.2440883,606.75,606.53,0.32974461]
[1743239911743,7.2440883,606.74,606.53,0.32974461]
[1743239911945,5.61699673,606.73,606.53,0.32974461]
[1743239912246,6.58468894,606.72,606.53,0.32974461]